fUST/lending_fUST_20250811
["ID","MTS","AMOUNT","RATE_DAILY","PERIOD"]
[378601356,1754922642511,-460.0,0.00019178,2]
[378601357,1754922642520,-460.0,0.00019178,2]
[378601358,1754922642530,-460.0,0.00019178,2]
[378601359,1754922642539,-460.0,0.00019178,2]
[378601360,1754922642548,-460.0,0.00019178,2]
[378601361,1754922642558,-460.0,0.00019178,2]
[378601362,1754922642567,-534.11,0.00019178,2]
[378601363,1754922642576,-460.0,0.00019178,2]
[378601364,1754922642585,-460.0,0.00019178,2]
[378601365,1754922642594,-460.0,0.00019178,2]
[378601366,1754922642603,-819.72,0.00019178,2]
[378601367,1754922642612,-460.0,0.00019178,2]
[378601368,1754922642621,-460.0,0.00019178,2]
[378601369,1754922642631,-460.0,0.00019178,2]
[378601370,1754922642640,-343.65240613,0.00019178,2]
[378601371,1754922642649,-246.69087393,0.00019178,2]
[378601373,1754922642658,-460.0,0.00019178,2]
[378601374,1754922642667,-460.0,0.00019178,2]
[378601375,1754922642678,-870.21,0.00019178,2]
[378601376,1754922642687,-460.0,0.00019178,2]
[378601377,1754922642697,-460.0,0.00019178,2]
[378601378,1754922642706,-460.0,0.00019178,2]
[378601379,1754922642715,-921.79,0.00019178,2]
[378601380,1754922642724,-472.21973355,0.00019178,2]
[378601381,1754922642733,-460.0,0.00019178,2]
[378601382,1754922642742,-460.0,0.00019178,2]
[378601383,1754922642752,-469.79976616,0.00019178,2]
[378601384,1754922642761,-460.0,0.00019178,2]
[378601385,1754922642771,-460.0,0.00019178,2]
[378601386,1754922642780,-602.57,0.00019178,2]
[378601387,1754922642790,-1778.7,0.00019178,2]
[378601388,1754922642799,-460.0,0.00019178,2]
[378601389,1754922642809,-460.0,0.00019178,2]
[378601390,1754922642818,-717.33,0.00019178,2]
[378601391,1754922642827,-460.0,0.00019178,2]
[378601392,1754922642836,-801.57,0.00019178,2]
[378601395,1754922642845,-723.43,0.00019178,2]
[378601397,1754922642855,-460.0,0.00019178,2]
[378601398,1754922642864,-460.0,0.00019178,2]
[378601399,1754922642873,-460.0,0.00019178,2]
[378601400,1754922642882,-460.0,0.00019178,2]
[378601401,1754922642895,-460.0,0.00019178,2]
[378601402,1754922642904,-460.0,0.00019178,2]
[378601403,1754922642913,-460.0,0.00019178,2]
[378601404,1754922642923,-460.0,0.00019178,2]
[378601405,1754922642932,-460.0,0.00019178,2]
[378601406,1754922642941,-460.0,0.00019178,2]
[378601407,1754922642951,-460.0,0.00019178,2]
[378601408,1754922642960,-460.0,0.00019178,2]
[378601409,1754922642970,-460.0,0.00019178,2]
[378601410,1754922642982,-460.0,0.00019178,2]
[378601411,1754922642992,-460.0,0.00019178,2]
[378601412,1754922643001,-460.0,0.00019178,2]
[378601413,1754922643011,-461.92465951,0.00019178,2]
[378601414,1754922643020,-460.0,0.00019178,2]
[378601415,1754922643029,-3501.28,0.00019178,2]
[378601416,1754922643039,-555.6,0.00019178,2]
[378601417,1754922643048,-460.0,0.00019178,2]
[378601418,1754922643058,-460.0,0.00019178,2]
[378601419,1754922643067,-564.9,0.00019178,2]
[378601420,1754922643077,-460.0,0.00019178,2]
[378601421,1754922643086,-460.0,0.00019178,2]
[378601422,1754922643096,-460.0,0.00019178,2]
[378601423,1754922643105,-460.0,0.00019178,2]
[378601424,1754922643115,-631.1,0.00019178,2]
[378601425,1754922643125,-1858.57,0.00019178,2]
[378601426,1754922643134,-460.0,0.00019178,2]
[378601427,1754922643143,-460.0,0.00019178,2]
[378601428,1754922643153,-460.0,0.00019178,2]
[378601429,1754922643162,-1420.35,0.00019178,2]
[378601430,1754922643171,-460.0,0.00019178,2]
[378601431,1754922643181,-1095.74,0.00019178,2]
[378601432,1754922643190,-460.0,0.00019178,2]
[378601433,1754922643199,-460.0,0.00019178,2]
[378601434,1754922643209,-460.0,0.00019178,2]
[378601435,1754922643219,-868.39,0.00019178,2]
[378601436,1754922643228,-460.0,0.00019178,2]
[378601437,1754922643238,-1037.02,0.00019178,2]
[378601438,1754922643248,-460.0,0.00019178,2]
[378601439,1754922643258,-460.0,0.00019178,2]
[378601440,1754922643267,-460.0,0.00019178,2]
[378601441,1754922643277,-1180.88,0.00019178,2]
[378601442,1754922643286,-560.75,0.00019178,2]
[378601443,1754922643295,-460.0,0.00019178,2]
[378601444,1754922643305,-460.0,0.00019178,2]
[378601445,1754922643315,-460.0,0.00019178,2]
[378601446,1754922643324,-1000.04,0.00019178,2]
[378601447,1754922643334,-460.0,0.00019178,2]
[378601448,1754922643343,-460.0,0.00019178,2]
[378601449,1754922643352,-460.0,0.00019178,2]
[378601451,1754922643362,-460.0,0.00019178,2]
[378601453,1754922643376,-1801.38,0.00019178,2]
[378601456,1754922643386,-4884.95,0.00019178,2]
[378601458,1754922643396,-460.0,0.00019178,2]
[378601459,1754922643405,-460.0,0.00019178,2]
[378601461,1754922643416,-460.0,0.00019178,2]
[378601462,1754922643427,-460.0,0.00019178,2]
[378601463,1754922643436,-460.0,0.00019178,2]
[378601464,1754922643448,-460.0,0.00019178,2]
[378601465,1754922643458,-512.32,0.00019178,2]
[378601466,1754922643468,-581.2765512,0.00019178,2]
[378601467,1754922643479,-460.0,0.00019178,2]
[378601468,1754922643498,-1000.0,0.00019178,2]
[378601469,1754922643508,-460.0,0.00019178,2]
[378601470,1754922643525,-460.0,0.00019178,2]
[378601471,1754922643535,-460.0,0.00019178,2]
[378601472,1754922643544,-460.0,0.00019178,2]
[378601473,1754922643554,-460.0,0.00019178,2]
[378601474,1754922643563,-460.0,0.00019178,2]
[378601475,1754922643573,-460.0,0.00019178,2]
[378601476,1754922643582,-460.0,0.00019178,2]
[378601477,1754922643592,-460.0,0.00019178,2]
[378601478,1754922643601,-214.1422116,0.00019178,2]
[378601479,1754922643611,-1129.43,0.00019178,2]
[378601480,1754922643621,-460.0,0.00019178,2]
[378601481,1754922643630,-460.0,0.00019178,2]
[378601482,1754922643639,-460.0,0.00019178,2]
[378601483,1754922643649,-460.0,0.00019178,2]
[378601484,1754922643658,-460.0,0.00019178,2]
[378601485,1754922643669,-460.0,0.00019178,2]
[378601486,1754922643679,-849.84,0.00019178,2]
[378601487,1754922643688,-460.0,0.00019178,2]
[378601488,1754922643697,-460.0,0.00019178,2]
[378601489,1754922643707,-460.0,0.00019178,2]
[378601490,1754922643716,-460.0,0.00019178,2]
[378601491,1754922643726,-3117.96,0.00019178,2]
[378601492,1754922643735,-460.0,0.00019178,2]
[378601493,1754922643744,-460.0,0.00019178,2]
[378601494,1754922643754,-460.0,0.00019178,2]
[378601495,1754922643764,-460.0,0.00019178,2]
[378601496,1754922643773,-863.64,0.00019178,2]
[378601497,1754922643782,-460.0,0.00019178,2]
[378601498,1754922643791,-460.0,0.00019178,2]
[378601499,1754922643801,-460.0,0.00019178,2]
[378601500,1754922643810,-460.0,0.00019178,2]
[378601501,1754922643819,-460.0,0.00019178,2]
[378601502,1754922643828,-460.0,0.00019178,2]
[378601503,1754922643838,-2035.34,0.00019178,2]
[378601504,1754922643848,-460.0,0.00019178,2]
[378601505,1754922643857,-460.0,0.00019178,2]
[378601506,1754922643867,-546.66,0.00019178,2]
[378601507,1754922643876,-460.0,0.00019178,2]
[378601508,1754922643885,-460.0,0.00019178,2]
[378601509,1754922643895,-534.49,0.00019178,2]
[378601510,1754922643904,-460.0,0.00019178,2]
[378601511,1754922643914,-472.99,0.00019178,2]
[378601512,1754922643923,-460.0,0.00019178,2]
[378601513,1754922643933,-500.0,0.00019178,2]
[378601514,1754922643942,-500.0,0.00019178,2]
[378601515,1754922643952,-460.0,0.00019178,2]
[378601516,1754922643961,-460.0,0.00019178,2]
[378601517,1754922643971,-460.0,0.00019178,2]
[378601518,1754922643980,-727.71,0.00019178,2]
[378601519,1754922643989,-460.0,0.00019178,2]
[378601520,1754922643999,-460.0,0.00019178,2]
[378601521,1754922644008,-460.0,0.00019178,2]
[378601522,1754922644017,-460.0,0.00019178,2]
[378601523,1754922644027,-460.0,0.00019178,2]
[378601524,1754922644036,-531.28,0.00019178,2]
[378601525,1754922644045,-1133.81,0.00019178,2]
[378601526,1754922644054,-2303.64,0.00019178,2]
[378601527,1754922644065,-460.0,0.00019178,2]
[378601528,1754922644074,-460.0,0.00019178,2]
[378601529,1754922644083,-460.0,0.00019178,2]
[378601530,1754922644093,-460.0,0.00019178,2]
[378601531,1754922644280,-630.91,0.00019178,2]
[378601532,1754922644290,-469.7,0.00019178,2]
[378601533,1754922644300,-649.5,0.00019178,2]
[378601534,1754922644310,-460.0,0.00019178,2]
[378601535,1754922644319,-460.0,0.00019178,2]
[378601536,1754922644330,-460.0,0.00019178,2]
[378601537,1754922644339,-1189.72,0.00019178,2]
[378601538,1754922644349,-825.64,0.00019178,2]
[378601539,1754922644359,-460.0,0.00019178,2]
[378601540,1754922644373,-460.0,0.00019178,2]
[378601541,1754922644383,-460.0,0.00019178,2]
[378601542,1754922644392,-3401.03,0.00019178,2]
[378601543,1754922644402,-2019.77,0.00019178,2]
[378601544,1754922644412,-460.0,0.00019178,2]
[378601545,1754922644424,-481.23,0.00019178,2]
[378601546,1754922644434,-956.58,0.00019178,2]
[378601547,1754922644444,-460.0,0.00019178,2]
[378601548,1754922644454,-623.23,0.00019178,2]
[378601549,1754922644464,-460.0,0.00019178,2]
[378601550,1754922644474,-632.5,0.00019178,2]
[378601551,1754922644484,-460.0,0.00019178,2]
[378601552,1754922644493,-460.0,0.00019178,2]
[378601553,1754922644503,-460.0,0.00019178,2]
[378601554,1754922644513,-460.0,0.00019178,2]
[378601555,1754922644523,-460.0,0.00019178,2]
[378601556,1754922644532,-4453.58,0.00019178,2]
[378601557,1754922644542,-591.63606736,0.00019178,2]
[378601558,1754922644551,-632.63,0.00019178,2]
[378601559,1754922644560,-460.0,0.00019178,2]
[378601560,1754922644570,-460.0,0.00019178,2]
[378601561,1754922644579,-471.59005621,0.00019178,2]
[378601562,1754922644588,-460.0,0.00019178,2]
[378601563,1754922644598,-460.0,0.00019178,2]
[378601564,1754922644608,-730.1,0.00019178,2]
[378601565,1754922644618,-1264.7,0.00019178,2]
[378601566,1754922644627,-547.92995498,0.00019178,2]
[378601567,1754922644637,-466.36908823,0.00019178,2]
[378601568,1754922644647,-460.0,0.00019178,2]
[378601569,1754922644657,-460.0,0.00019178,2]
[378601570,1754922644667,-646.79,0.00019178,2]
[378601571,1754922644678,-460.0,0.00019178,2]
[378601572,1754922644688,-1072.58,0.00019178,2]
[378601573,1754922644697,-460.0,0.00019178,2]
[378601574,1754922644707,-460.0,0.00019178,2]
[378601575,1754922644717,-460.0,0.00019178,2]
[378601576,1754922644726,-460.0,0.00019178,2]
[378601577,1754922644736,-889.23,0.00019178,2]
[378601578,1754922644746,-944.81,0.00019178,2]
[378601579,1754922644755,-460.0,0.00019178,2]
[378601580,1754922644764,-460.0,0.00019178,2]
[378601581,1754922644774,-3645.41,0.00019178,2]
[378601582,1754922644784,-699.37,0.00019178,2]
[378601583,1754922644793,-460.0,0.00019178,2]
[378601584,1754922644803,-460.0,0.00019178,2]
[378601585,1754922644812,-2039.76,0.00019178,2]
[378601586,1754922644822,-1846.32,0.00019178,2]
[378601587,1754922644832,-460.0,0.00019178,2]
[378601588,1754922644855,-615.14,0.00019178,2]
[378601589,1754922644877,-491.25430969,0.00019178,2]
[378601590,1754922644888,-328.19706238,0.00019178,2]
[378601591,1754922644898,-460.0,0.00019178,2]
[378601592,1754922644911,-460.0,0.00019178,2]
[378601593,1754922644922,-460.0,0.00019178,2]
[378601594,1754922644932,-460.0,0.00019178,2]
[378601595,1754922644942,-460.0,0.00019178,2]
[378601596,1754922644951,-471.57582866,0.00019178,2]
[378601597,1754922644960,-739.09,0.00019178,2]
[378601598,1754922644970,-486.1938409,0.00019178,2]
[378601599,1754922644980,-460.0,0.00019178,2]
[378601600,1754922644990,-1175.79,0.00019178,2]
[378601601,1754922644999,-460.0,0.00019178,2]
[378601602,1754922645009,-607.4,0.00019178,2]
[378601603,1754922645018,-460.0,0.00019178,2]
[378601604,1754922645028,-879.17,0.00019178,2]
[378601605,1754922645038,-4446.05,0.00019178,2]
[378601606,1754922645048,-460.0,0.00019178,2]
[378601607,1754922645058,-632.42,0.00019178,2]
[378601608,1754922645068,-622.66,0.00019178,2]
[378601609,1754922645078,-950.15,0.00019178,2]
[378601610,1754922645087,-460.0,0.00019178,2]
[378601611,1754922645097,-460.0,0.00019178,2]
[378601612,1754922645107,-3114.7,0.00019178,2]
[378601613,1754922645116,-492.05,0.00019178,2]
[378601614,1754922645126,-460.0,0.00019178,2]
[378601615,1754922645135,-10521.44,0.00019178,2]
[378601616,1754922645145,-230.46860468,0.00019178,2]
[378601617,1754922645154,-460.0,0.00019178,2]
[378601618,1754922645164,-460.0,0.00019178,2]
[378601619,1754922645176,-460.0,0.00019178,2]
[378601620,1754922645186,-460.0,0.00019178,2]
[378601621,1754922645195,-460.0,0.00019178,2]
[378601622,1754922645206,-518.04767297,0.00019178,2]
[378601623,1754922645215,-460.0,0.00019178,2]
[378601624,1754922645225,-1217.0,0.00019178,2]
[378601625,1754922645234,-460.0,0.00019178,2]
[378601626,1754922645244,-460.0,0.00019178,2]
[378601627,1754922645254,-666.0,0.00019178,2]
[378601628,1754922645264,-500.0,0.00019237,2]
[378601629,1754922645273,-1545.43384651,0.0001925,2]
[378601630,1754922645283,-100000.0,0.00019329,2]
[378601631,1754922645292,-5888.0,0.0001934,2]
[378601632,1754922645302,-200.0,0.00019341,15]
[378601633,1754922645312,-200.0,0.00019341,15]
[378601634,1754922645321,-200.0,0.00019341,15]
[378601635,1754922645331,-200.0,0.00019341,15]
[378601636,1754922645340,-567.0,0.00019379,2]
[378601637,1754922645350,-151.0,0.000194,2]
[378601638,1754922645359,-151.0,0.000194,2]
[378601639,1754922645372,-1545.43384651,0.00019438,2]
[378601640,1754922645381,-460.0,0.00019452,2]
[378601641,1754922645391,-460.0,0.00019452,2]
[378601642,1754922645401,-460.0,0.00019452,2]
[378601643,1754922645410,-460.0,0.00019452,2]
[378601644,1754922645423,-635.53,0.00019452,2]
[378601645,1754922645433,-460.0,0.00019452,2]
[378601646,1754922645443,-460.0,0.00019452,2]
[378601647,1754922645453,-460.0,0.00019452,2]
[378601648,1754922645463,-460.0,0.00019452,2]
[378601649,1754922645473,-460.0,0.00019452,2]
[378601650,1754922645482,-460.0,0.00019452,2]
[378601651,1754922645492,-693.64,0.00019452,2]
[378601652,1754922645502,-460.0,0.00019452,2]
[378601653,1754922645511,-460.0,0.00019452,2]
[378601654,1754922645521,-460.0,0.00019452,2]
[378601655,1754922645531,-460.0,0.00019452,2]
[378601656,1754922645541,-460.0,0.00019452,2]
[378601657,1754922645551,-460.0,0.00019452,2]
[378601658,1754922645561,-460.0,0.00019452,2]
[378601659,1754922645570,-460.0,0.00019452,2]
[378601660,1754922645580,-460.0,0.00019452,2]
[378601661,1754922645589,-460.0,0.00019452,2]
[378601662,1754922645599,-460.0,0.00019452,2]
[378601663,1754922645609,-460.0,0.00019452,2]
[378601664,1754922645619,-460.0,0.00019452,2]
[378601665,1754922645628,-460.0,0.00019452,2]
[378601667,1754922645638,-460.0,0.00019452,2]
[378601668,1754922645646,-460.0,0.00019452,2]
[378601669,1754922645655,-460.0,0.00019452,2]
[378601670,1754922645664,-460.0,0.00019452,2]
[378601671,1754922645674,-460.0,0.00019452,2]
[378601672,1754922645684,-460.0,0.00019452,2]
[378601673,1754922645693,-680.05,0.00019452,2]
[378601674,1754922645702,-460.0,0.00019452,2]
[378601675,1754922645712,-460.0,0.00019452,2]
[378601676,1754922645722,-460.0,0.00019452,2]
[378601677,1754922645731,-460.0,0.00019452,2]
[378601678,1754922645740,-460.0,0.00019452,2]
[378601679,1754922645749,-460.0,0.00019452,2]
[378601680,1754922645758,-460.0,0.00019452,2]
[378601681,1754922645767,-460.0,0.00019452,2]
[378601682,1754922645777,-460.0,0.00019452,2]
[378601683,1754922645787,-500.0,0.00019452,2]
[378601684,1754922645796,-460.0,0.00019452,2]
[378601685,1754922645805,-460.0,0.00019452,2]
[378601686,1754922645815,-460.0,0.00019452,2]
[378601687,1754922645824,-460.0,0.00019452,2]
[378601688,1754922645834,-163.0063287,0.00019452,2]
[378601689,1754922645843,-460.0,0.00019452,2]
[378601690,1754922645853,-460.0,0.00019452,2]
[378601691,1754922645863,-460.0,0.00019452,2]
[378601692,1754922645872,-460.0,0.00019452,2]
[378601693,1754922645882,-460.0,0.00019452,2]
[378601694,1754922645892,-460.0,0.00019452,2]
[378601695,1754922645901,-460.0,0.00019452,2]
[378601696,1754922645912,-460.0,0.00019452,2]
[378601697,1754922645922,-460.0,0.00019452,2]
[378601698,1754922645931,-460.0,0.00019452,2]
[378601699,1754922645941,-460.0,0.00019452,2]
[378601700,1754922645950,-460.0,0.00019452,2]
[378601701,1754922645960,-460.0,0.00019452,2]
[378601702,1754922645969,-460.0,0.00019452,2]
[378601703,1754922645979,-460.0,0.00019452,2]
[378601704,1754922645989,-460.0,0.00019452,2]
[378601705,1754922645999,-460.0,0.00019452,2]
[378601706,1754922646009,-541.57,0.00019452,2]
[378601707,1754922646019,-460.0,0.00019452,2]
[378601708,1754922646028,-460.0,0.00019452,2]
[378601709,1754922646038,-460.0,0.00019452,2]
[378601710,1754922646048,-460.0,0.00019452,2]
[378601711,1754922646057,-492.5,0.00019452,2]
[378601712,1754922646067,-460.0,0.00019452,2]
[378601713,1754922646076,-460.0,0.00019452,2]
[378601714,1754922646085,-460.0,0.00019452,2]
[378601715,1754922646095,-460.0,0.00019452,2]
[378601716,1754922646104,-460.0,0.00019452,2]
[378601717,1754922646114,-460.0,0.00019452,2]
[378601718,1754922646124,-460.0,0.00019452,2]
[378601719,1754922646134,-460.0,0.00019452,2]
[378601720,1754922646143,-1116.17,0.00019452,2]
[378601721,1754922646154,-460.0,0.00019452,2]
[378601722,1754922646163,-460.0,0.00019452,2]
[378601723,1754922646176,-1080.87,0.00019452,2]
[378601724,1754922646187,-493.08677408,0.00019452,2]
[378601725,1754922646197,-460.0,0.00019452,2]
[378601726,1754922646207,-460.0,0.00019452,2]
[378601727,1754922646218,-460.0,0.00019452,2]
[378601728,1754922646228,-460.0,0.00019452,2]
[378601729,1754922646238,-460.0,0.00019452,2]
[378601730,1754922646247,-460.0,0.00019452,2]
[378601731,1754922646258,-746.37,0.00019452,2]
[378601732,1754922646268,-460.0,0.00019452,2]
[378601733,1754922646278,-460.0,0.00019452,2]
[378601734,1754922646288,-460.0,0.00019452,2]
[378601735,1754922646298,-460.0,0.00019452,2]
[378601736,1754922646309,-460.0,0.00019452,2]
[378601737,1754922646319,-629.12,0.00019452,2]
[378601738,1754922646330,-460.0,0.00019452,2]
[378601739,1754922646341,-1264.43,0.00019452,2]
[378601740,1754922646352,-460.0,0.00019452,2]
[378601741,1754922646363,-300.21722509,0.00019452,2]
[378601742,1754922646376,-460.0,0.00019452,2]
[378601743,1754922646387,-460.0,0.00019452,2]
[378601744,1754922646397,-736.79,0.00019452,2]
[378601745,1754922646407,-460.0,0.00019452,2]
[378601746,1754922646418,-460.0,0.00019452,2]
[378601747,1754922646431,-460.0,0.00019452,2]
[378601748,1754922646440,-295.42854797,0.00019452,2]
[378601749,1754922646451,-460.0,0.00019452,2]
[378601750,1754922646461,-464.51985424,0.00019452,2]
[378601751,1754922646471,-613.5,0.00019452,2]
[378601752,1754922646481,-460.0,0.00019452,2]
[378601753,1754922646491,-645.86,0.00019452,2]
[378601754,1754922646500,-460.0,0.00019452,2]
[378601755,1754922646510,-460.0,0.00019452,2]
[378601756,1754922646519,-460.0,0.00019452,2]
[378601757,1754922646530,-487.53304859,0.00019452,2]
[378601758,1754922646540,-465.54300267,0.00019452,2]
[378601759,1754922646549,-460.0,0.00019452,2]
[378601760,1754922646558,-460.0,0.00019452,2]
[378601761,1754922646568,-931.87,0.00019452,2]
[378601762,1754922646578,-460.0,0.00019452,2]
[378601763,1754922646588,-460.0,0.00019452,2]
[378601765,1754922646598,-478.67,0.00019452,2]
[378601767,1754922646608,-460.0,0.00019452,2]
[378601769,1754922646618,-460.0,0.00019452,2]
[378601771,1754922646630,-460.0,0.00019452,2]
[378601774,1754922646644,-460.0,0.00019452,2]
[378601776,1754922646657,-551.59,0.00019452,2]
[378601777,1754922646675,-460.0,0.00019452,2]
[378601779,1754922646689,-151.0,0.00019452,2]
[378601781,1754922646700,-151.0,0.00019452,2]
[378601783,1754922646711,-500.0,0.00019452,2]
[378601786,1754922646723,-460.0,0.00019452,2]
[378601788,1754922646736,-151.0,0.00019452,2]
[378601790,1754922646748,-500.0,0.00019452,2]
[378601792,1754922646761,-500.0,0.00019452,2]
[378601795,1754922646773,-460.0,0.00019452,2]
[378601797,1754922646787,-460.0,0.00019452,2]
[378601800,1754922646799,-203.32158467,0.00019452,2]
[378601804,1754922646812,-460.0,0.00019452,2]
[378601806,1754922646824,-151.0,0.00019452,2]
[378601808,1754922646838,-460.0,0.00019452,2]
[378601809,1754922646852,-460.0,0.00019452,2]
[378601810,1754922646863,-152.8385055,0.00019452,2]
[378601811,1754922646876,-151.0,0.00019452,2]
[378601812,1754922646888,-460.0,0.00019452,2]
[378601813,1754922646899,-545.98,0.00019452,2]
[378601814,1754922646910,-460.0,0.00019452,2]
[378601815,1754922646925,-460.0,0.00019452,2]
[378601816,1754922646938,-460.0,0.00019452,2]
[378601817,1754922646949,-151.0,0.00019452,2]
[378601818,1754922646961,-151.0,0.00019452,2]
[378601819,1754922646971,-460.0,0.00019452,2]
[378601820,1754922646981,-460.0,0.00019452,2]
[378601821,1754922646993,-460.0,0.00019452,2]
[378601822,1754922647004,-460.0,0.00019452,2]
[378601823,1754922647016,-460.0,0.00019452,2]
[378601824,1754922647028,-460.0,0.00019452,2]
[378601825,1754922647041,-460.0,0.00019452,2]
[378601826,1754922647053,-467.48925364,0.00019452,2]
[378601827,1754922647065,-460.0,0.00019452,2]
[378601828,1754922647077,-460.0,0.00019452,2]
[378601829,1754922647089,-460.0,0.00019452,2]
[378601830,1754922647103,-460.0,0.00019452,2]
[378601831,1754922647116,-460.0,0.00019452,2]
[378601832,1754922647127,-760.71,0.00019452,2]
[378601833,1754922647137,-477.508044,0.00019452,2]
[378601834,1754922647147,-460.0,0.00019452,2]
[378601835,1754922647158,-460.0,0.00019452,2]
[378601836,1754922647169,-460.0,0.00019452,2]
[378601837,1754922647184,-460.0,0.00019452,2]
[378601838,1754922647201,-460.0,0.00019452,2]
[378601839,1754922647213,-460.0,0.00019452,2]
[378601840,1754922647223,-995.49,0.00019452,2]
[378601841,1754922647233,-463.62425837,0.00019452,2]
[378601842,1754922647244,-460.0,0.00019452,2]
[378601843,1754922647256,-545.77,0.00019452,2]
[378601844,1754922647268,-460.0,0.00019452,2]
[378601845,1754922647280,-490.96594389,0.00019452,2]
[378601846,1754922647291,-776.92,0.00019452,2]
[378601847,1754922647302,-1182.49,0.00019452,2]
[378601848,1754922647312,-465.37403272,0.00019452,2]
[378601849,1754922647324,-630.77,0.00019452,2]
[378601850,1754922647335,-460.0,0.00019452,2]
[378601851,1754922647346,-460.0,0.00019452,2]
[378601852,1754922647357,-460.0,0.00019452,2]
[378601853,1754922647370,-460.0,0.00019452,2]
[378601854,1754922647382,-468.5,0.00019452,2]
[378601855,1754922647393,-460.0,0.00019452,2]
[378601856,1754922647405,-460.0,0.00019452,2]
[378601857,1754922647417,-497.87,0.00019452,2]
[378601858,1754922647432,-460.0,0.00019452,2]
[378601859,1754922647444,-460.0,0.00019452,2]
[378601860,1754922647455,-563.35,0.00019452,2]
[378601861,1754922647465,-460.0,0.00019452,2]
[378601862,1754922647476,-460.0,0.00019452,2]
[378601863,1754922647487,-1366.98,0.00019452,2]
[378601864,1754922647497,-789.71,0.00019452,2]
[378601865,1754922647509,-460.0,0.00019452,2]
[378601866,1754922647520,-460.0,0.00019452,2]
[378601867,1754922647531,-460.0,0.00019452,2]
[378601868,1754922647543,-460.0,0.00019452,2]
[378601869,1754922647553,-460.0,0.00019452,2]
[378601870,1754922647564,-460.0,0.00019452,2]
[378601871,1754922647575,-717.79,0.00019452,2]
[378601872,1754922647586,-460.0,0.00019452,2]
[378601873,1754922647598,-460.0,0.00019452,2]
[378601874,1754922647609,-460.0,0.00019452,2]
[378601875,1754922647620,-1430.31,0.00019452,2]
[378601876,1754922647631,-460.0,0.00019452,2]
[378601877,1754922647643,-500.0,0.00019452,2]
[378601878,1754922647654,-460.0,0.00019452,2]
[378601879,1754922647665,-460.0,0.00019452,2]
[378601880,1754922647680,-1236.46,0.00019452,2]
[378601881,1754922647691,-762.44,0.00019452,2]
[378601882,1754922647702,-460.0,0.00019452,2]
[378601883,1754922647714,-1717.65,0.00019452,2]
[378601884,1754922647725,-460.0,0.00019452,2]
[378601885,1754922647736,-460.0,0.00019452,2]
[378601886,1754922647750,-777.25,0.00019452,2]
[378601887,1754922647761,-460.65843678,0.00019452,2]
[378601888,1754922647772,-460.0,0.00019452,2]
[378601889,1754922647784,-460.0,0.00019452,2]
[378601890,1754922647794,-460.0,0.00019452,2]
[378601891,1754922647806,-540.73,0.00019452,2]